Cogmind - Beta 14 @@@ ROGUE MODE // 2024.08.30 @ 03:04:23 Player: MOPO3 Result: Destroyed by 8R-AWN with 8R-AWN's Boregun Performance ------------- Evolutions (0) 0 Regions Visited (3) 600 Robots Destroyed (41) 205 Value Destroyed (532) 532 Prototype IDs (0) 0 Alien Tech Used (0) 0 Bonus (-17) -17 TOTAL SCORE: 1320 Bonus ------- Friendly Fire -17 Cogmind --------- Core Integrity 0/250 Matter 249/300 Energy 100/100 System Corruption 8% Temperature Cool (0) Movement Core (350) Ox6 Location -10/Exiles Parts ------- > --- POWER (1) -------- (None) > --- PROPULSION (2) --- (None) > --- UTILITY (2) ------ Large Storage Unit Signal Interpreter > --- WEAPON (2) ------- (None) > --- INVENTORY (15) --- Light Ion Engine Light Ion Engine Light Treads Medium Matter Pod (100) High-capacity Matter Pod (36) Structural Scanner Sensor Array Experimental Sensor Array Light Armor Plating Grenade Launcher Grenade Launcher Datajack Peak State ------------ > --- POWER ------------ Light Nuclear Core > --- PROPULSION ------- Light Treads Light Treads > --- UTILITY ---------- Large Storage Unit Hacking Suite > --- WEAPON ----------- Grenade Launcher Grenade Launcher > --- INVENTORY -------- Light Ion Engine Light Ion Engine Light Treads Aluminum Leg Aluminum Leg Medium Matter Pod High-capacity Matter Pod Structural Scanner Sensor Array Experimental Sensor Array Signal Interpreter Light Armor Plating EM Pulse Gun Assault Rifle Datajack [Rating: 13] Favorites ----------- Power Light Nuclear Core Engine Light Ion Engine Power Core Light Nuclear Core Propulsion Aluminum Leg Treads Light Treads Leg Aluminum Leg Utility Large Storage Unit Device Improved Terrain Scanner Storage Large Storage Unit Processor Signal Interpreter Hackware Hacking Suite Weapon Assault Rifle Energy Gun EM Pulse Gun Ballistic Gun Assault Rifle Launcher Grenade Launcher Build | -11 -10 -10 -10 ------- Run | Yrd Mat Min Exi Slots Evolved . | . . . . Power . | . . . . Propulsion . | . . . . Utility . | . . . . Weapon . | . . . . Parts Attached 28 | 6 14 8 . Power 3 | 1 2 . . Engine 2 | 1 1 . . Core 1 | . 1 . . Reactor . | . . . . Propulsion 6 | 2 1 3 . Treads 4 | 2 1 1 . Leg 2 | . . 2 . Wheel . | . . . . Hover . | . . . . Flight . | . . . . Utility 5 | 1 3 1 . Device 1 | . 1 . . Storage 2 | 1 1 . . Processor 1 | . . 1 . Hackware 1 | . 1 . . Protection . | . . . . Artifact . | . . . . Weapon 14 | 2 8 4 . Energy Gun 2 | 1 . 1 . Energy Cannon . | . . . . Ballistic Gun 6 | 1 4 1 . Ballistic Cannon . | . . . . Launcher 6 | . 4 2 . Special Weapon . | . . . . Impact Weapon . | . . . . Slashing Weapon . | . . . . Piercing Weapon . | . . . . Special Melee Weapon . | . . . . Unidentified Prototypes . | . . . . Parts Lost 8 | . . 3 5 Power 1 | . . . 1 Propulsion 4 | . . 2 2 Utility 1 | . . 1 . Weapon 2 | . . . 2 Highest Loss Streak 5 | . . 3 5 To Critical Strikes 1 | . . . 1 Average Slot Usage (%) 86 | . 99 79 96 Engine 2 | . 9 . . Core 10 | . 4 14 11 Treads 8 | . 27 1 . Leg 11 | . . 14 28 Device 3 | . 10 . . Storage 14 | . 14 14 14 Processor 4 | . . 5 14 Hackware 1 | . 3 . . Energy Gun 6 | . 3 7 12 Ballistic Gun 10 | . 16 7 14 Launcher 10 | . 7 13 . Peak Build Rating 13 | 6 12 13 11 Average Rating 9 | 5 9 9 10 On Entrance 7 | . 6 12 11 Naked Turns . | . . . . Heaviest Build 31 | 11 30 31 29 Greatest Support 40 | 40 40 40 20 Greatest Overweight (x) 10 | 2 . 10 1 Average Overweight (x) 1 | . . 2 . Largest Inventory Capacity 15 | 8 15 15 15 Average Capacity 14 | 7 12 15 15 Most Carried 15 | 5 15 15 12 Average Carried 12 | 3 10 13 12 Final Capacity 15 | 8 15 15 15 Final Carried 15 | 5 15 12 12 Class Distribution -------------------- 100% | Mutant Dominant Class ---------------- Mutant | -10/Materials Mutant | -10/Mines Mutant | -10/Exiles Resources | -11 -10 -10 -10 ----------- Run | Yrd Mat Min Exi Matter Collected 1138 | 280 425 433 . Remotely . | . . . . Salvage Created 959 | 29 544 330 56 Parts 91 | 2 42 47 . Haulers Intercepted 1 | . 1 . . Recyclers Shooed . | . . . . Parts Field Recycled . | . . . . Retrieved Matter . | . . . . Parts Self-Destructed . | . . . . Prevented . | . . . . Kills | -11 -10 -10 -10 ------- Run | Yrd Mat Min Exi Combat Hostiles Destroyed 19 | . 9 7 3 Guns 10 | . 6 1 3 AOE 9 | . 3 6 . Classes Destroyed 11 | 1 6 3 1 Worker 4 | . . 4 . Builder 13 | . 7 6 . Tunneler 3 | 1 . 2 . Hauler 1 | . 1 . . Recycler 1 | . . 1 . Operator 1 | . 1 . . Watcher 2 | . 2 . . Swarmer 9 | . 3 6 . Grunt 6 | . 6 . . Demolisher 1 | . . 1 . Assembled 3 | . . . 3 Best Kill Streak 4 | 1 4 3 2 Combat Bots Only 4 | . 4 3 2 Max Kills in Single Turn 3 | 1 3 3 1 Gunslinging . | . . . . Exploded 3 | . 3 3 . Melee . | . . . . Uniques/NPCs Destroyed . | . . . . Combat | -11 -10 -10 -10 -------- Run | Yrd Mat Min Exi Hostile Shots Fired 99 | . 44 13 42 Missed 24 | . 11 5 8 Damage Taken 1375 | . 454 442 479 Core 254 | . 59 96 99 Absorbed by Shields . | . . . . Regen/Repaired (Parts) 104 | . 104 . . Core Remaining (%) 100 | 100 . . . Volleys Fired 106 | 10 48 33 15 Largest 2 | 2 2 2 2 Hottest 60 | 60 60 60 60 Shots Fired 205 | 20 96 69 20 Gun 190 | 20 94 56 20 Cannon . | . . . . Launcher 15 | . 2 13 . Special . | . . . . Kinetic 127 | 10 73 29 15 Thermal 31 | 10 21 . . Explosive 15 | . 2 13 . Electromagnetic 32 | . . 27 5 Robot Hit Streak 11 | 6 10 11 3 Robot Miss Streak 5 | 3 4 5 3 Penetration Max . | . . . . Secondary Targets 3 | . 2 . 1 Max Gunslinging Chain 1 | . 1 . 1 Shots Hit Robots 109 | 11 58 30 10 Core Hits 59 | 1 30 23 5 Critical Kills . | . . . . Critical Parts Destroyed 1 | . 1 . . Critical Strikes 2 | . 1 1 . Destroy 1 | . 1 . . Corrupt 1 | . . 1 . Melee Attacks . | . . . . Impact . | . . . . Slashing . | . . . . Piercing . | . . . . Sneak Attacks . | . . . . Combat Hostiles . | . . . . Follow-up Attacks . | . . . . Damage Inflicted 1918 | 131 918 716 153 Guns 1274 | 131 715 275 153 Cannons . | . . . . Explosions 637 | . 198 439 . Melee . | . . . . Ramming 7 | . 5 2 . Kinetic 855 | 66 592 81 116 Thermal 188 | 65 123 . . Explosive 637 | . 198 439 . Electromagnetic 231 | . . 194 37 Impact . | . . . . Slashing . | . . . . Piercing . | . . . . Highest Corruption 8 | . . 4 8 Average Corruption 4 | . . 4 4 Corruption Purged . | . . . . Corruption Blocked . | . . . . Effects 67 | . . 59 8 Message Errors 20 | . . 18 2 Matter Fused 13 | . . 12 1 Heat Flow Errors 10 | . . 8 2 Energy Discharges 7 | . . 6 1 Data Loss (minor) 7 | . . 7 . Data Loss (major) 4 | . . 4 . Misfires 4 | . . 3 1 Alerts 1 | . . 1 . Weapon Failures 1 | . . . 1 Overload Shots . | . . . . Overflow Damage 75 | . 15 60 . Projectiles . | . . . . Explosions 75 | . 15 60 . Melee . | . . . . Knockbacks . | . . . . Impact . | . . . . Kinetic . | . . . . Secondary . | . . . . Self-Inflicted Damage 70 | . 23 47 . Shots 4 | . 1 3 . Rammed 5 | 1 1 3 . Targets Rammed 6 | 1 1 4 . Kicked 1 | . . 1 . Crushed . | . . . . Highest Temperature 268 | . 102 268 171 Average Temperature 49 | . 42 47 68 Received Heat Transfer 271 | . 231 . 40 Effects 2 | . . 2 . Interference 2 | . . 2 . Siege Activations . | . . . . Robots Corrupted . | . . . . Combat Hostiles . | . . . . Parts Fried . | . . . . Impact Corruptions . | . . . . Robots Melted . | . . . . Combat Hostiles . | . . . . Parts Melted . | . . . . Heat Transferred 425 | 150 275 . . Parts Sabotaged . | . . . . Parts Stolen . | . . . . Parts Stripped . | . . . . Power Chain Reactions . | . . . . Alert | -11 -10 -10 -10 ------- Run | Yrd Mat Min Exi Peak Influence 198 | 5 198 103 . Initial 3 | . 3 . . Average 31 | 2 36 31 . Maximum Alert Level . | . . . . Low Security (%) 100 | 100 100 100 . Level 1 . | . . . . Level 2 . | . . . . Level 3 . | . . . . Level 4 . | . . . . Level 5 . | . . . . High Security . | . . . . Max Security . | . . . . Squads Dispatched . | . . . . Investigation . | . . . . Extermination . | . . . . Reinforcement . | . . . . Assault . | . . . . Garrison . | . . . . Intercept . | . . . . Searches Triggered . | . . . . Construction Impeded . | . . . . Haulers Reinforced . | . . . . Active Scanning Responses . | . . . . Cargo Convoy Interrupts . | . . . . Stealth | -11 -10 -10 -10 --------- Run | Yrd Mat Min Exi Distress Signals 1 | . 1 . . Communications Jammed . | . . . . Distress Signals . | . . . . Times Spotted 26 | . 13 7 6 Peak Tracking Total 9 | . 5 3 9 Tactical Retreats . | . . . . Traps | -11 -10 -10 -10 ------- Run | Yrd Mat Min Exi Traps Triggered 1 | . 1 . . Indirectly . | . . . . Trap Hack Attempts . | . . . . Triggered . | . . . . Disarmed . | . . . . Reprogrammed . | . . . . Reused . | . . . . Traps Extracted . | . . . . Installed . | . . . . Triggered . | . . . . Machines | -11 -10 -10 -10 ---------- Run | Yrd Mat Min Exi Machines Disabled . | . . . . Max in Single Turn . | . . . . Machines Repaired . | . . . . Machines Dismantled . | . . . . Machines Sabotaged . | . . . . Overloaded Fab Kills . | . . . . Hacking | -11 -10 -10 -10 --------- Run | Yrd Mat Min Exi Machines Accessed 5 | . 5 . . Terminals 4 | . 4 . . Fabricators . | . . . . Repair Stations 1 | . 1 . . Recycling Units . | . . . . Scanalyzers . | . . . . Garrison Access . | . . . . Total Hacks 11 | . 11 . . Successful 5 | . 5 . . Failed 6 | . 6 . . Catastrophic 2 | . 2 . . Database Lockouts . | . . . . Manual 6 | . 6 . . Terminals 6 | . 6 . . Fabricators . | . . . . Repair Stations 5 | . 5 . . Recycling Units . | . . . . Scanalyzers . | . . . . Garrison Access . | . . . . Terminal Hacks 1 | . 1 . . Branch Access Points 1 | . 1 . . Fabricator Hacks . | . . . . Repair Station Hacks 4 | . 4 . . Scan Component 2 | . 2 . . Repair 2 | . 2 . . Recycling Unit Hacks . | . . . . Scanalyzer . | . . . . Garrison Access Hacks . | . . . . Unauthorized Hacks . | . . . . Terminals . | . . . . Fabricators . | . . . . Repair Stations . | . . . . Recycling Units . | . . . . Scanalyzers . | . . . . Garrison Access . | . . . . Data Cores Recovered 1 | . 1 . . Used . | . . . . Hacking Detections 5 | . 5 . . Full Trace Events . | . . . . Feedback Events . | . . . . Feedback Blocked . | . . . . Robot Schematics Acquired . | . . . . Robots Built . | . . . . Authchips . | . . . . Time . | . . . . Total Robot Build Rating . | . . . . Part Schematics Acquired . | . . . . Parts Built . | . . . . Authchips . | . . . . Time . | . . . . Total Part Build Rating . | . . . . Parts Repaired 2 | . 2 . . Time 52 | . 52 . . Parts Recycled . | . . . . Recycled Matter . | . . . . Retrieved Matter . | . . . . Retrieved Components . | . . . . Parts Scanalyzed . | . . . . Part Schematics Acquired . | . . . . Parts Damaged . | . . . . Bothacking | -11 -10 -10 -10 ------------ Run | Yrd Mat Min Exi Used RIF Installer . | . . . . Robots Hacked . | . . . . Non-combat . | . . . . Combat . | . . . . Robot Hacks Applied . | . . . . Relay Couplers Released . | . . . . Fabnet Peak Effective % . | . . . . Robots Rewired . | . . . . Allies Hacked . | . . . . Hacks Repelled . | . . . . Allies | -11 -10 -10 -10 -------- Run | Yrd Mat Min Exi Total Allies 3 | . . 3 . Largest Group 3 | . . 3 3 Highest-Rated Group 40 | . . 40 40 Highest-Rated Ally 16 | . . 16 16 Total Orders . | . . . . Ally Attacks 20 | . . . 20 Total Damage 162 | . . . 162 Kills 3 | . . . 3 Allies Corrupted . | . . . . Allies Melted . | . . . . Intel | -11 -10 -10 -10 ------- Run | Yrd Mat Min Exi Robot Analysis Total . | . . . . Derelict Logs Recovered 1 | . . 1 . Drone Launches . | . . . . Drone Recoveries . | . . . . Exploration | -11 -10 -10 -10 ------------- Run | Yrd Mat Min Exi Turns Passed 3897 | 127 1084 2426 260 Spaces Moved 1529 | 53 527 843 106 Core 163 | 6 . 157 . Treads 626 | 47 527 52 . Legs 740 | . . 634 106 Wheels . | . . . . Hover . | . . . . Flight . | . . . . Fastest Speed 50 | 50 160 160 120 Average Speed 214 | 156 160 255 189 Slowest Speed 550 | 160 160 550 190 Overloaded Moves . | . . . . Propulsion Burnouts . | . . . . Robots Hopped . | . . . . Cave-ins Triggered 1 | . . 1 . Exploration Rate (%) 51 | 4 75 98 28 Regions Visited 3 Branch Regions 2 Pre-discovered Areas . | . . . . Known Exits Taken 2 | . 1 1 . Unknown Exits Taken 1 | 1 . . . Scrap Searched 2 | . . 2 . Spaces Dug . | . . . . Terrain Destroyed 88 | . 12 76 . Melee . | . . . . Projectile . | . . . . AOE 88 | . 12 76 . Terrain Rammed . | . . . . Walls Destroyed . | . . . . Machines Disabled . | . . . . Actions | -11 -10 -10 -10 --------- Run | Yrd Mat Min Exi Total 1925 | 74 668 1037 146 Wait 234 | . 63 146 25 Move 1526 | 52 526 842 106 Hop . | . . . . Pick Up 19 | 5 12 2 . Fast Attach 9 | 6 3 . . Attach 4 | . 1 3 . Detach . | . . . . Swap 15 | . 10 5 . Drop 6 | . 4 2 . Fire 106 | 10 48 33 15 Melee . | . . . . Ram 3 | . . 3 . Kick 1 | . . 1 . Crush 2 | 1 1 . . Escape Stasis . | . . . . Rewire . | . . . . Trap . | . . . . Miscellaneous . | . . . . Route ------- -11/Scrapyard -10/Materials (discovered 3 exits: *Mat x2 / *Min) -10/Mines (discovered 4 exits: *Mat x2 / *Exi / *Sub) -10/Exiles (discovered 1 exit: *Min) History --------- Turn | Location | Event 13 | -11/Scrapyard | Discovered new exit (range 16) 128 | -11/Scrapyard | Entered Materials 301 | -10/Materials | Build established: Mutant 417 | -10/Materials | Discovered new exit (range 16) 600 | -10/Materials | Discovered new exit (range 4) 648 | -10/Materials | Repaired Lgt. Treads 676 | -10/Materials | Repaired Lgt. Ion Engine 948 | -10/Materials | Discovered new exit (range 16) 1028 | -10/Materials | Identified exit to Mines 1212 | -10/Materials | Entered Mines 1270 | -10/Mines | Found a damaged Exp. Sensor Array with a note attached 1280 | -10/Mines | Found Prototype Device 1292 | -10/Mines | Discovered new exit (range 15) 1312 | -10/Mines | Crushed by falling debris 1343 | -10/Mines | Lost 3 parts (2n1u) 1651 | -10/Mines | Core integrity fell below 50% 1908 | -10/Mines | Assembled infested the area 1913 | -10/Mines | Assisted by a Guerilla fighting off Assembled 2679 | -10/Mines | Discovered new exit (range 13) 2708 | -10/Mines | Identified exit to Subcaves 2863 | -10/Mines | Discovered new exit (range 5) 2873 | -10/Mines | Identified exit to Materials 2937 | -10/Mines | Deemed a non-threat by the Exiles lab entrance 2939 | -10/Mines | Discovered new exit (range 5) 2947 | -10/Mines | Identified exit to Exiles 3059 | -10/Mines | Assisted by bots powering up and referring to "LRC-V3" 3368 | -10/Mines | Learned Materials interactive machine intel 3638 | -10/Mines | Entered Exiles 3638 | -10/Exiles | Accompanied by 3 allies 3669 | -10/Exiles | Discovered new exit (range 15) 3694 | -10/Exiles | Identified exit to Mines 3730 | -10/Exiles | Met 8R-AWN 3760 | -10/Exiles | Met EX-HEX 3824 | -10/Exiles | Attacked by the Exiles 3876 | -10/Exiles | Core integrity fell below 20% 3881 | -10/Exiles | Lost 3 allies 3898 | -10/Exiles | Destroyed by 8R-AWN with 8R-AWN's Boregun Last Messages --------------- System corrupted: Heat flow error (+115). Extracted 12 energy. System corrupted: EM Pulse Gun failed to cycle. EM Pulse Gun destroyed. T5DCPBO96I&PDXYYH7PJ<:OOILN#RX8SR as-71539 destroyed. as-88750 destroyed. Assault Rifle destroyed. Extracted 4 energy. Penetrated by HV Slug. HV Slug penetrates Wall. Penetrated by HV Slug. Critical hit (Destroy). Aluminum Leg destroyed. HV Slug penetrates Wall. HV Slug penetrates Earth. Penetrated by HV Slug. Aluminum Leg destroyed. HV Slug penetrates Earth. Penetrated by HV Slug. Map ----- +----------------------------------------------------+ | ??????????????????????????####"""?"""?"??????????? | | ???????????????????????? " """ """"#????????? | | ?????????????????????? "" " ????????? | | ????????????????????? " """#???????? | | ????????????????????? " "#???????? | | ????????????????????? " "##??????? | | ?????????????????????? ""###????? | | ??????????????????????? """#????? | | ??????????????????????? "#????# | | ???????????????????????#""" ##???# | | ????????????????????????#""" ##?## | | ????????????????????????#"""" ### | | ???????? ??????????????##"" | | ??????? #??####???####"""" | | ??????? ## ####""" | | ??????? """" #" | | ?????? ### | | ?????? ##?? | | ?????? " ##??? | | ?????? " "" """ ""#???? | | ???????? ""## ##""" " " ""#" "##???? | | ????????? ""#??# ######""" """##"""""""##????? | | ????????? "???????# #????###""""###########?????? | | ?????????????????## ####???######???????????????? | | ?????????????????#! "a###??????????????????????? | | ?????????????????#" %!g@#??????????????????????? | | ?????????????????#" %"###??????????????????????? | | ?????????????????#!!""!"#????????????????????????? | | ?????????????????########????????????????????????? | | ?????????????????????????????????????????????????? | | ?????????????????????????????????????????????????? | | ?????????????????????????????????????????????????? | | ?????????????????????????????????????????????????? | | ?????????????????????????????????????????????????? | | ?????????????????????????????????????????????????? | | ?????????????????????????????????????????????????? | | ?????????????????????????????????????????????????? | | ?????????????????????????????????????????????????? | | ?????????????????????????????????????????????????? | | ?????????????????????????????????????????????????? | | ?????????????????????????????????????????????????? | | ?????????????????????????????????????????????????? | | ?????????????????????????????????????????????????? | | ?????????????????????????????????????????????????? | | ?????????????????????????????????????????????????? | | ?????????????????????????????????????????????????? | | ?????????????????????????????????????????????????? | | ?????????????????????????????????????????????????? | | ?????????????????????????????????????????????????? | | ?????????????????????????????????????????????????? | +----------------------------------------------------+ Best States ------------- Heat Dissipation 25 Energy Generation 14 Energy Capacity 160 Matter Stores 300 Matter Capacity 300 Sight Range 16 Terrain Scan Range 16 Terrain Scan Density 10 Evasion (%) 40 Recoil Reduction 2 Offensive Hacking 10 Item Schematics ----------------- None Robot Schematics ------------------ None Fabricated ------------ Nothing Alien Tech Used ----------------- None Achievements -------------- None Challenges ------------ None Game ------ Seed GuidedAerolevFlamer Manual? 0 Play Time 00:19:40 Cumulative 14.1 hours Start 2024.08.30 @ 02:46:18 End 2024.08.30 @ 03:04:23 Sessions 1 Manual Loads 0 Difficulty Rogue Special Mode None Game No. 23 Rogue 23 Adventurer 0 Explorer 0 Win Type - Total 0 Types 0/0/0/0/0/0/0/0/0 Lore% 10 Gallery% 18 Achievement% 17 Wizard Run 0 Options --------- Layout 0 ASCII 0 Keyboard 0 Movement Numpad Keybinds 0 Fullscreen 1 Font 18/Cog Map View 76x50 Zoom Use 0% Tactical HUD 0 Map Filters NONE Filters NONE Steam 1 RUN: 7963d3a9-b1d8-4d24-bf51-d024156cce65